bitfinex-derivatives/quotes_SOLF0:USTF0_20250109
["timestamp","ask_amount","ask_price","bid_price","bid_amount"]
[1736426480064,9.13,190.48,190.44,10.5464279]
[1736426480369,10.5464279,190.61,190.47,10.5464279]
[1736426480568,2.6257,190.55,190.5,2.6263]
[1736426480771,2.6257,190.55,190.47,10.5464279]
[1736426481360,2.6257,190.55,190.43,3.1682]
[1736426481361,4.69,190.55,190.5,10.5464279]
[1736426481567,4.69,190.55,190.53,10.5464279]
[1736426481767,10.5464279,190.64,190.54,2.6258]
[1736426482263,2.6248,190.61,190.55,2.6255]
[1736426482865,1.5799,190.69,190.53,10.5464279]
[1736426482866,10.5464279,190.67,190.53,10.5464279]
[1736426483067,2.6245,190.64,190.58,2.6252]
[1736426483262,1.5799,190.69,190.59,10.5464279]
[1736426483467,2.624,190.67,190.61,2.6248]
[1736426483870,1.5799,190.69,190.59,10.5464279]
[1736426484164,10.5464279,190.68,190.56,15.3664279]
[1736426484371,2.6243,190.65,190.59,2.6251]
[1736426484967,2.6244,190.64,190.56,13.1718279]
[1736426485271,10.5464279,190.65,190.51,3.2417]
[1736426485467,10.5464279,190.62,190.52,10.5464279]
[1736426486266,2.6252,190.59,190.52,2.626]
[1736426486569,10.5464279,190.62,190.51,3.2417]
[1736426487067,10.5464279,190.59,190.51,1.6261]
[1736426487767,2.6258,190.54,190.51,1.6261]
[1736426488171,10.5464279,190.59,190.51,1.6261]
[1736426488767,2.6255,190.56,190.51,1.6261]
[1736426489969,10.5464279,190.59,190.46,10.5464279]
[1736426490169,2.6259,190.54,190.47,4.8]
[1736426490370,10.5464279,190.59,190.47,4.8]
[1736426490571,2.6259,190.54,190.48,2.6266]
[1736426491269,10.5464279,190.51,190.42,1.4791]
[1736426491469,2.627,190.45,190.39,2.6278]
[1736426491674,2.627,190.45,190.36,3.0285]
[1736426492269,10.5464279,190.47,190.36,3.0285]
[1736426492469,2.6269,190.46,190.36,3.0285]
[1736426492666,2.6269,190.46,190.37,10.5464279]
[1736426493376,2.6267,190.48,190.37,16.95477902]
[1736426493570,1.559,190.53,190.4,16.95477902]
[1736426493776,2.6265,190.49,190.42,2.6274]
[1736426495169,2.6267,190.48,190.42,2.6274]
[1736426495565,18.51377902,190.53,190.41,1.6122]
[1736426495779,2.627,190.45,190.38,4.82]
[1736426496275,2.6269,190.46,190.36,4.6407]
[1736426496475,16.95477902,190.5,190.36,4.6407]
[1736426496776,2.6271,190.45,190.38,2.6279]
[1736426498177,2.6271,190.45,190.39,2.6278]
[1736426498778,2.6272,190.44,190.38,2.628]
[1736426499278,16.95477902,190.5,190.36,4.6407]
[1736426499579,2.627,190.45,190.39,2.6278]
[1736426500175,2.6269,190.47,190.41,2.6276]
[1736426500577,2.627,190.46,190.4,2.6277]
[1736426500777,16.95477902,190.5,190.36,4.6407]
[1736426500978,1.6092,190.49,190.36,4.6407]
[1736426501177,2.6273,190.44,190.37,2.628]
[1736426501378,1.6092,190.49,190.37,2.628]
[1736426501680,2.6275,190.42,190.36,1.4791]
[1736426501981,1.6092,190.49,190.36,1.4791]
[1736426502183,16.95477902,190.47,190.36,1.4791]
[1736426502380,16.95477902,190.47,190.31,16.95477902]
[1736426502576,16.95477902,190.47,190.33,2.6286]
[1736426503082,2.628,190.39,190.34,2.6285]
[1736426503283,16.95477902,190.47,190.31,16.95477902]
[1736426503681,2.6281,190.38,190.33,2.6286]
[1736426503882,16.95477902,190.47,190.31,16.95477902]
[1736426504379,2.6279,190.39,190.34,2.6284]
[1736426504579,16.95477902,190.47,190.31,16.95477902]
[1736426504972,2.6277,190.41,190.31,16.95477902]
[1736426505173,1.6092,190.49,190.34,16.95477902]
[1736426505384,2.6273,190.44,190.39,2.6277]
[1736426505682,1.6092,190.49,190.39,2.6277]
[1736426506185,1.6092,190.49,190.35,1.6094]
[1736426506484,1.6092,190.49,190.4,2.6277]
[1736426506679,1.6092,190.49,190.35,1.6094]
[1736426506983,2.6273,190.43,190.35,1.6094]
[1736426507582,2.6282,190.37,190.2,81.92]
[1736426507783,16.95477902,190.47,190.28,20.08567902]
[1736426507983,16.95477902,190.47,190.35,2.6283]
[1736426508486,16.95477902,190.47,190.31,16.95477902]
[1736426508684,16.95477902,190.47,190.34,2.6285]
[1736426509279,16.95477902,190.44,190.28,20.08567902]
[1736426509481,1.5501,190.43,190.28,20.08567902]
[1736426510087,1.6295,190.42,190.28,20.08567902]
[1736426510281,16.95477902,190.41,190.28,1.6108]
[1736426510483,16.95477902,190.41,190.28,2.6292]
[1736426510686,16.95477902,190.41,190.25,20.73107689]
[1736426511189,16.95477902,190.41,190.29,2.6292]
[1736426511388,6.4695,190.42,190.28,16.95477902]
[1736426512191,2.6285,190.34,190.3,2.629]
[1736426513591,2.6285,190.34,190.28,16.95477902]
[1736426513792,6.4695,190.42,190.29,2.6292]
[1736426513990,16.95477902,190.41,190.25,16.95477902]
[1736426514189,16.95477902,190.41,190.28,2.6293]
[1736426514493,4.84,190.41,190.28,16.95477902]
[1736426514885,21.79477902,190.41,190.25,16.95477902]
[1736426515479,2.6288,190.33,190.28,2.6292]
[1736426517391,2.6288,190.33,190.29,10.60787253]
[1736426518994,2.6281,190.38,190.29,13.23707253]
[1736426519194,15.44787253,190.41,190.29,10.60787253]
[1736426519396,15.44787253,190.41,190.3,1.5312]
[1736426519594,2.6284,190.36,190.31,2.6289]
[1736426519991,2.6284,190.36,190.3,1.5312]
[1736426520488,1.6295,190.42,190.33,2.6287]
[1736426520489,2.6281,190.38,190.33,2.6287]
[1736426520802,1.6295,190.42,190.32,10.60787253]
[1736426521101,2.6282,190.37,190.32,13.23667253]
[1736426521504,2.6282,190.37,190.31,10.60787253]
[1736426521699,1.6295,190.42,190.31,10.60787253]
[1736426521897,10.60787253,190.41,190.31,10.60787253]
[1736426522201,10.60787253,190.41,190.28,13.23707253]
[1736426522900,10.60787253,190.41,190.28,10.60787253]
[1736426523202,2.6286,190.34,190.29,2.6292]
[1736426523601,10.60787253,190.41,190.29,2.6292]
[1736426523904,10.60787253,190.41,190.31,10.60787253]
[1736426524102,1.5501,190.43,190.34,10.60787253]
[1736426524306,15.40787253,190.47,190.34,10.60787253]
[1736426525410,2.6279,190.39,190.34,13.23627253]
[1736426526107,2.6277,190.4,190.35,2.6284]
[1736426526306,10.60787253,190.47,190.35,10.60787253]
[1736426526511,2.6275,190.42,190.37,2.628]
[1736426528607,5.60062498,190.48,190.38,10.60787253]
[1736426528802,5.60062498,190.48,190.39,1.4937]
[1736426529602,8.22732498,190.48,190.42,2.6274]
[1736426529804,2.6267,190.48,190.42,2.6274]
[1736426530899,10.60787253,190.53,190.41,10.60787253]
[1736426530900,2.6265,190.49,190.41,10.60787253]
[1736426531104,10.60787253,190.53,190.41,10.60787253]
[1736426531301,2.6264,190.5,190.45,2.627]
[1736426531504,10.60787253,190.53,190.45,2.627]
[1736426531705,10.60787253,190.56,190.44,10.60787253]
[1736426532106,10.60787253,190.59,190.47,10.60787253]
[1736426532300,10.60787253,190.59,190.48,1.6015]
[1736426532506,2.9926,190.6,190.5,10.60787253]
[1736426532507,1.5121,190.6,190.5,10.60787253]
[1736426532700,145.2518329,190.61,190.5,10.60787253]
[1736426532901,145.2518329,190.61,190.54,2.6257]
[1736426533114,10.60787253,190.62,190.51,3.1003]
[1736426533411,2.6253,190.58,190.52,4.78]
[1736426534506,10.60787253,190.62,190.35,7.2473252]
[1736426534705,1.5121,190.66,190.49,10.60787253]
[1736426534910,10.60787253,190.62,190.49,10.60787253]
[1736426535110,2.6248,190.61,190.54,2.6257]
[1736426535409,10.60787253,190.65,190.52,10.60787253]
[1736426536109,2.6249,190.61,190.54,2.6257]
[1736426536410,2.625,190.6,190.53,2.6259]
[1736426537507,10.60787253,190.65,190.52,10.60787253]
[1736426537904,10.60787253,190.62,190.49,10.60787253]
[1736426538112,10.60787253,190.59,190.49,10.60787253]
[1736426540011,10.60787253,190.59,190.48,1.5645]
[1736426540211,2.6261,190.52,190.48,1.5645]
[1736426540912,3.1775,190.58,190.48,1.5645]
[1736426541312,4.78,190.65,190.48,4.191]
[1736426541513,2.6258,190.55,190.49,1.5283]
[1736426541713,10.60787253,190.6,190.49,1.5283]
[1736426542113,10.60787253,190.57,190.48,1.5645]
[1736426542515,2.6267,190.48,190.43,15.36787253]
[1736426542716,10.60787253,190.54,190.43,15.36787253]
[1736426543111,2.6265,190.49,190.43,15.36787253]
[1736426543516,2.6266,190.48,190.43,15.36787253]
[1736426543712,10.60787253,190.54,190.43,15.36787253]
[1736426544112,2.6268,190.47,190.43,15.36787253]
[1736426544312,2.6268,190.47,190.43,10.60787253]
[1736426544714,2.6268,190.47,190.42,1.4781]
[1736426545116,10.60787253,190.48,190.36,2.6282]
[1736426545313,10.60787253,190.45,190.35,10.60787253]
[1736426545512,10.60787253,190.45,190.32,12.18747253]
[1736426545714,10.60787253,190.45,190.33,2.6286]
[1736426546116,10.60787253,190.45,190.33,10.60787253]
[1736426546313,3.0568,190.47,190.33,10.60787253]
[1736426546314,4.5702,190.47,190.33,10.60787253]
[1736426546816,2.6278,190.4,190.33,13.23647253]
[1736426547214,4.5702,190.47,190.33,13.23647253]
[1736426547416,4.5702,190.47,190.33,10.60787253]
[1736426547721,10.60787253,190.43,190.28,10.60787253]
[1736426547914,10.60787253,190.4,190.28,10.60787253]
[1736426548414,1.5265,190.39,190.28,10.60787253]
[1736426548608,2.6286,190.34,190.28,10.60787253]
[1736426548809,2.6286,190.34,190.28,13.23717253]
[1736426549319,2.6286,190.34,190.28,2.6293]
[1736426549820,2.6282,190.37,190.26,16.97291806]
[1736426550119,3.0981,190.47,190.32,16.97291806]
[1736426550413,2.6273,190.43,190.36,2.6281]
[1736426552021,2.6275,190.42,190.36,2.6281]
[1736426554018,4.606,190.47,190.33,1.5944]
[1736426555222,2.6275,190.42,190.33,4.223]
[1736426555423,16.97291806,190.45,190.33,1.5944]
[1736426555623,4.606,190.47,190.33,1.5944]
[1736426555822,2.6276,190.41,190.34,2.6284]
[1736426556322,4.606,190.47,190.33,1.5944]
[1736426556518,2.6273,190.43,190.37,2.6281]
[1736426557714,4.606,190.47,190.33,3.1317]
[1736426558124,1.5847,190.47,190.35,16.97291806]
[1736426558313,16.97291806,190.51,190.35,16.97291806]
[1736426558520,2.6269,190.47,190.35,16.97291806]
[1736426559123,2.6269,190.47,190.4,2.6276]
[1736426560223,2.6269,190.46,190.4,2.6276]
[1736426562222,2.6269,190.46,190.35,16.97291806]
[1736426562223,2.6269,190.46,190.41,2.6276]
[1736426563222,16.97291806,190.51,190.35,16.97291806]
[1736426563419,2.6272,190.44,190.38,2.628]
[1736426563620,4.74,190.52,190.34,1.4741]
[1736426563621,16.97291806,190.48,190.34,1.4741]
[1736426563825,4.4848,190.47,190.34,1.4741]
[1736426564020,2.6273,190.44,190.36,2.6282]
[1736426564220,4.4848,190.47,190.36,2.6282]
[1736426564826,2.6274,190.42,190.36,2.6282]
[1736426565126,4.4848,190.47,190.36,2.6282]
[1736426565317,4.4848,190.47,190.34,1.4741]
[1736426565717,4.4848,190.47,190.34,2.6284]
[1736426565921,16.97291806,190.45,190.33,1.5944]
[1736426566127,16.97291806,190.45,190.29,16.97291806]
[1736426566328,2.6283,190.36,190.31,2.6289]
[1736426566529,21.69291806,190.45,190.29,16.97291806]
[1736426566828,2.6281,190.38,190.32,2.6288]
[1736426567030,21.69291806,190.45,190.32,2.6288]
[1736426567424,2.6281,190.38,190.32,2.6288]
[1736426567826,21.69291806,190.45,190.29,16.97291806]
[1736426568026,16.97291806,190.42,190.28,6.3037]
[1736426568222,4.72,190.45,190.28,1.5837]
[1736426568223,16.97291806,190.39,190.28,1.5837]
[1736426568429,1.5273,190.38,190.28,4.213]
[1736426568629,2.6286,190.34,190.28,4.213]
[1736426568829,4.4976,190.38,190.28,4.213]
[1736426569829,4.4976,190.38,190.3,2.629]
[1736426570132,4.4976,190.38,190.28,1.5837]
[1736426570532,4.4976,190.38,190.31,2.6289]
[1736426570925,2.6284,190.36,190.31,2.6289]
[1736426571228,4.4976,190.38,190.31,2.6289]
[1736426571535,4.4976,190.38,190.28,4.213]
[1736426571536,2.6287,190.33,190.28,4.213]
[1736426571736,2.6287,190.33,190.21,2.9751]
[1736426571737,10.60906818,190.36,190.24,10.60906818]
[1736426572937,2.6288,190.33,190.27,2.6295]
[1736426573640,10.60906818,190.36,190.27,2.6295]
[1736426573838,2.6289,190.32,190.27,2.6295]
[1736426574436,2.6289,190.32,190.24,10.60906818]
[1736426575039,2.629,190.31,190.24,10.60906818]
[1736426575236,10.60906818,190.36,190.24,10.60906818]
[1736426576035,2.6292,190.3,190.24,13.23886818]
[1736426576234,2.6292,190.3,190.24,10.60906818]
[1736426576441,10.60906818,190.36,190.24,10.60906818]
[1736426577340,2.6289,190.32,190.26,2.6295]
[1736426577540,2.6289,190.32,190.24,10.60906818]
[1736426577939,2.629,190.31,190.26,2.6296]
[1736426578138,2.629,190.31,190.24,10.60906818]
[1736426579144,2.629,190.31,190.26,2.6296]
[1736426579744,2.6291,190.31,190.25,2.6297]
[1736426579941,4.4976,190.38,190.21,10.60906818]
[1736426579942,10.60906818,190.33,190.21,10.60906818]
[1736426580845,2.6293,190.29,190.23,2.63]
[1736426581239,10.60906818,190.33,190.21,10.60906818]
[1736426581439,2.6295,190.27,190.22,2.6301]
[1736426581638,10.60906818,190.33,190.21,10.60906818]
[1736426582134,2.6294,190.29,190.23,2.6301]
[1736426582434,10.60906818,190.33,190.23,2.6301]
[1736426582743,2.6294,190.28,190.23,2.6301]
[1736426583442,2.6294,190.28,190.21,10.60906818]
[1736426583639,2.6296,190.27,190.22,2.6301]
[1736426584246,2.6294,190.28,190.23,2.63]
[1736426584545,10.60906818,190.33,190.21,10.60906818]
[1736426584746,10.60906818,190.36,190.24,10.60906818]
[1736426585141,4.4976,190.38,190.27,10.60906818]
[1736426585341,2.6284,190.35,190.3,2.6291]
[1736426585947,2.6284,190.35,190.29,2.6292]
[1736426587148,2.6284,190.35,190.3,2.6291]
[1736426587445,1.5273,190.38,190.3,10.60906818]
[1736426587638,10.60906818,190.42,190.33,2.6286]
[1736426587837,2.628,190.38,190.3,10.60906818]
[1736426589246,10.60906818,190.39,190.27,14.75236818]
[1736426589841,10.60906818,190.42,190.3,10.60906818]
[1736426592252,2.6281,190.38,190.33,2.6286]
[1736426592951,2.6283,190.36,190.3,10.60906818]
[1736426593652,2.6283,190.36,190.31,2.6289]
[1736426600357,2.6277,190.41,190.35,2.6283]
[1736426600658,4.6509,190.45,190.33,10.60906818]
[1736426601757,2.6278,190.4,190.35,2.6284]
[1736426601960,4.6509,190.45,190.33,10.60906818]
[1736426602255,10.60906818,190.43,190.3,10.60906818]
[1736426603057,10.60906818,190.43,190.32,2.6288]
[1736426603458,10.60906818,190.43,190.3,10.60906818]
[1736426603757,10.60906818,190.43,190.33,2.6286]
[1736426603758,2.6281,190.38,190.33,2.6286]
[1736426604461,10.60906818,190.43,190.33,2.6286]
[1736426604462,2.6281,190.37,190.33,2.6286]
[1736426604654,2.6281,190.37,190.32,2.6288]
[1736426604860,10.60906818,190.43,190.32,2.6288]
[1736426605252,2.6285,190.35,190.3,13.23806818]
[1736426605452,10.60906818,190.4,190.27,12.20346818]
[1736426605863,2.6286,190.34,190.29,2.6291]
[1736426615272,2.6286,190.34,190.3,6.79047523]
[1736426617669,6.79047523,190.32,190.26,6.79047523]
[1736426617874,6.79047523,190.3,190.24,6.79047523]
[1736426618173,2.6294,190.28,190.24,6.79047523]
[1736426619671,6.79047523,190.28,190.13,7.2473252]
[1736426619972,6.79047523,190.28,190.2,6.79047523]
[1736426620169,2.6299,190.25,190.2,6.79047523]
[1736426620369,6.79047523,190.28,190.2,6.79047523]
[1736426620570,3.0338,190.29,190.2,6.79047523]
[1736426620765,6.79047523,190.28,190.2,9.42087523]
[1736426620970,6.79047523,190.28,190.22,6.79047523]
[1736426621267,2.6298,190.25,190.19,2.6305]
[1736426621765,2.6296,190.27,190.2,2.6305]
[1736426623273,3.0338,190.29,190.16,4.66]
[1736426623471,3.0338,190.29,190.18,13.25012765]
[1736426624372,2.63,190.24,190.18,13.25012765]
[1736426625874,2.6301,190.23,190.18,13.25012765]
[1736426626270,2.6301,190.23,190.18,10.61942765]
[1736426626475,10.61942765,190.28,190.18,10.61942765]
[1736426626476,2.6302,190.22,190.18,10.61942765]
[1736426626774,10.61942765,190.28,190.18,10.61942765]
[1736426627173,2.6298,190.25,190.18,10.61942765]
[1736426627371,10.61942765,190.28,190.18,10.61942765]
[1736426627577,10.61942765,190.28,190.17,2.6309]
[1736426627976,10.61942765,190.28,190.15,14.39706765]
[1736426628177,10.61942765,190.28,190.15,10.61942765]
[1736426628480,2.6304,190.21,190.15,10.61942765]
[1736426628681,2.6304,190.21,190.15,13.25042765]
[1736426628881,10.61942765,190.28,190.15,13.25042765]
[1736426629180,2.6305,190.2,190.15,13.25042765]
[1736426630375,4.64,190.21,190.02,7.2473252]
[1736426630581,10.61942765,190.09,190.02,7.2473252]
[1736426631082,2.6325,190.06,190.02,7.2473252]
[1736426631280,10.61942765,190.09,190.02,7.2473252]
[1736426631684,10.61942765,190.09,189.99,86.90099804]
[1736426631685,10.61942765,190.12,189.99,10.61942765]
[1736426632074,10.61942765,190.12,190.0,2.6332]
[1736426632383,10.61942765,190.12,189.94,1.2604]
[1736426632785,10.61942765,190.12,189.97,10.61942765]
[1736426633084,10.61942765,190.12,189.99,2.6334]
[1736426633688,2.6324,190.07,189.99,2.6334]
[1736426634179,2.6322,190.08,189.99,2.6334]
[1736426634387,10.61942765,190.12,189.99,2.6334]
[1736426635088,10.61942765,190.12,190.0,10.61942765]
[1736426635691,2.6323,190.08,190.01,2.6331]
[1736426635887,12.10822765,190.12,190.0,10.61942765]
[1736426636691,3.1605,190.19,190.09,10.61942765]
[1736426636886,3.1605,190.19,190.1,4.7]
[1736426638091,2.6308,190.18,190.11,2.6317]
[1736426638686,3.1605,190.19,190.11,2.6317]
[1736426638882,3.1605,190.19,190.1,4.7]
[1736426639491,2.6314,190.14,190.1,4.7]
[1736426639692,3.1605,190.19,190.1,4.7]
[1736426640693,2.6312,190.15,190.1,4.7]
[1736426641097,3.1605,190.19,190.09,10.61942765]
[1736426641386,2.631,190.16,190.09,10.61942765]
[1736426641594,3.1605,190.19,190.09,13.25132765]
[1736426641789,3.1605,190.19,190.09,10.61942765]
[1736426641991,2.631,190.17,190.09,10.61942765]
[1736426642193,3.1605,190.19,190.09,10.61942765]
[1736426642396,2.631,190.16,190.12,2.6315]
[1736426643793,2.6309,190.17,190.12,2.6315]
[1736426644001,1.6107,190.21,190.14,2.6312]
[1736426644198,10.61942765,190.26,190.15,15.31942765]
[1736426644401,2.6303,190.22,190.15,15.31942765]
[1736426644599,2.6303,190.22,190.17,2.6308]
[1736426644900,2.6303,190.22,190.15,15.31942765]
[1736426645401,2.6303,190.22,190.17,2.6309]
[1736426645793,2.6304,190.21,190.17,2.6309]
[1736426646000,10.61942765,190.26,190.12,10.61942765]
[1736426646203,10.61942765,190.23,190.13,4.7]
[1736426646402,2.6306,190.2,190.13,4.7]
[1736426646699,1.5881,190.22,190.15,2.6311]
[1736426647098,2.6306,190.2,190.15,7.3511]
[1736426647300,1.5881,190.22,190.15,7.3511]
[1736426648098,2.6305,190.2,190.15,7.3511]
[1736426648301,1.5881,190.22,190.15,7.3511]
[1736426648697,1.5881,190.22,190.12,10.61942765]
[1736426648891,1.5881,190.22,190.1,1.6328]
[1736426649092,10.61942765,190.2,190.09,13.86212765]
[1736426649401,2.6314,190.14,190.09,13.86212765]
[1736426649902,2.6316,190.12,190.09,3.2427]
[1736426650093,10.61942765,190.2,190.06,15.31942765]
[1736426650297,3.1894,190.19,190.06,15.31942765]
[1736426650498,2.6316,190.13,190.06,15.31942765]
[1736426650799,3.1894,190.19,190.09,10.61942765]
[1736426650999,3.1894,190.19,190.09,13.25132765]
[1736426651500,2.6313,190.15,190.09,13.25132765]
[1736426654301,1.5881,190.22,190.12,10.61942765]
[1736426654798,2.6304,190.21,190.15,2.6312]
[1736426655103,13.72002765,190.26,190.15,2.6312]
[1736426655295,2.6305,190.2,190.15,2.6312]
[1736426655702,13.72002765,190.26,190.14,2.6313]
[1736426656501,2.6306,190.19,190.14,2.6313]
[1736426656801,13.72002765,190.26,190.15,2.6312]
[1736426657009,13.72002765,190.26,190.15,10.61942765]
[1736426657200,3.1006,190.26,190.15,10.61942765]
[1736426657703,2.6304,190.21,190.16,2.6309]
[1736426658112,2.6305,190.2,190.15,13.25052765]
[1736426658405,3.1006,190.26,190.13,9.2876]
[1736426658406,13.72002765,190.26,190.13,9.2876]
[1736426658607,10.61942765,190.23,190.13,7.8035]
[1736426658804,2.6311,190.16,190.13,7.8035]
[1736426659602,10.61942765,190.23,190.13,7.8035]
[1736426659802,2.631,190.17,190.13,7.8035]
[1736426660710,2.631,190.16,190.13,7.8035]
[1736426661305,2.6309,190.17,190.13,7.8035]
[1736426662299,13.72002765,190.26,190.13,7.8035]
[1736426662703,2.6306,190.2,190.15,2.6312]
[1736426663311,2.6306,190.19,190.14,2.6313]
[1736426665104,2.6305,190.2,190.15,2.6312]
[1736426665306,13.72002765,190.26,190.13,7.8035]
[1736426665508,2.6307,190.19,190.13,21.05432765]
[1736426665907,13.72002765,190.26,190.13,21.05432765]
[1736426666208,13.72002765,190.26,190.13,18.42292765]
[1736426666416,10.61942765,190.23,190.13,7.8035]
[1736426667610,10.61942765,190.23,190.13,4.7]
[1736426667813,10.61942765,190.23,190.1,10.61942765]
[1736426668009,2.6312,190.15,190.1,10.61942765]
[1736426668210,2.6312,190.15,190.1,13.25122765]
[1736426669210,3.1006,190.26,190.13,10.61942765]
[1736426669514,10.61942765,190.25,190.13,10.61942765]
[1736426669918,10.61942765,190.22,190.1,10.61942765]
[1736426670322,2.6307,190.19,190.1,13.25122765]
[1736426670516,10.61942765,190.22,190.1,13.25122765]
[1736426670918,2.6312,190.15,190.1,13.25122765]
[1736426671928,2.6313,190.14,190.1,13.25122765]
[1736426672614,2.6313,190.14,190.1,10.61942765]
[1736426675030,2.6312,190.15,190.1,13.25122765]
[1736426675726,10.61942765,190.22,190.1,10.61942765]
[1736426675927,155.87126055,190.25,190.1,10.61942765]
[1736426676116,155.87126055,190.25,190.15,2.631]
[1736426676117,2.6303,190.22,190.15,2.631]
[1736426676321,155.87126055,190.25,190.04,3.0887]
[1736426676522,155.87126055,190.25,190.11,10.61942765]
[1736426676724,10.61942765,190.25,190.11,10.61942765]
[1736426676922,2.631,190.17,190.12,2.6315]
[1736426677722,2.631,190.17,190.11,10.61942765]
[1736426677922,2.631,190.17,190.13,2.6314]
[1736426678323,2.631,190.17,190.11,10.61942765]
[1736426678530,2.631,190.17,190.12,2.6315]
[1736426678923,2.631,190.17,190.13,2.6314]
[1736426680125,2.631,190.17,190.12,2.6315]
[1736426680524,10.61942765,190.22,190.11,10.61942765]
[1736426680730,10.61942765,190.22,190.08,10.61942765]
[1736426681523,10.61942765,190.22,190.11,2.6317]
[1736426681732,10.61942765,190.19,190.04,3.0887]
[1736426681926,10.61942765,190.16,190.04,13.70812765]
[1736426682330,2.6316,190.12,190.06,2.6324]
[1736426682532,2.6316,190.12,190.04,13.70812765]
[1736426684133,2.6316,190.12,190.07,2.6322]
[1736426691037,2.6316,190.12,190.07,13.25162765]
[1736426693346,2.6316,190.12,190.09,6.80474354]
[1736426693545,2.6315,190.13,190.09,6.80474354]
[1736426695048,6.80474354,190.13,190.04,5.7213]
[1736426695243,6.80474354,190.11,190.05,6.80474354]
[1736426695745,2.632,190.09,190.05,6.80474354]
[1736426696137,6.80474354,190.11,190.05,6.80474354]
[1736426696343,2.6321,190.08,190.05,6.80474354]
[1736426697148,2.6321,190.08,190.04,1.5837]
[1736426699937,10.63866087,190.13,190.02,10.63866087]
[1736426700141,10.63866087,190.1,189.99,12.25896087]
[1736426700348,10.63866087,190.1,189.96,10.63866087]
[1736426700546,10.63866087,190.07,189.96,10.63866087]
[1736426700941,2.6331,190.02,189.96,13.27236087]
[1736426702150,2.6332,190.01,189.97,0.20838]
[1736426702346,10.63866087,190.07,189.97,0.20838]
[1736426703254,10.63866087,190.04,189.97,0.20838]
[1736426703442,2.6333,190.0,189.97,0.20838]
[1736426703753,10.63866087,190.04,189.97,0.20838]
[1736426704049,2.6332,190.01,189.97,0.20838]
[1736426704249,4.64,190.08,189.97,0.20838]
[1736426704647,2.6326,190.05,189.99,2.6333]
[1736426705045,4.64,190.08,189.99,2.6333]
[1736426706251,2.6327,190.04,189.98,2.6335]
[1736426706448,4.64,190.08,189.98,2.6335]
[1736426706751,4.64,190.08,189.97,0.20838]
[1736426707353,2.6331,190.02,189.97,0.20838]
[1736426707651,10.63866087,190.06,189.97,0.20838]
[1736426707852,2.6331,190.01,189.97,0.20838]
[1736426708247,10.63866087,190.06,189.97,0.20838]
[1736426708554,10.63866087,190.03,189.97,0.20838]
[1736426708851,2.6333,190.0,189.97,0.20838]
[1736426710753,2.6334,189.99,189.97,0.20838]
[1736426713959,1.6246,190.02,189.97,0.20838]
[1736426714163,2.6335,189.98,189.97,0.20838]
[1736426714965,2.634,189.95,189.9,2.6346]
[1736426715352,10.63866087,190.0,189.9,2.6346]
[1736426715558,10.63866087,189.97,189.85,57.04078158]
[1736426716164,10.63866087,189.97,189.87,2.635]
[1736426716559,2.6342,189.94,189.88,2.6349]
[1736426716752,10.63866087,190.0,189.85,46.40212071]
[1736426716958,10.63866087,189.97,189.85,46.40212071]
[1736426717257,7.8071,190.01,189.7,10.63866087]
[1736426717258,10.63866087,189.94,189.7,10.63866087]
[1736426717452,10.63866087,190.0,189.7,10.63866087]
[1736426717453,10.63866087,189.91,189.78,10.63866087]
[1736426717655,10.63866087,189.91,189.81,2.6358]
[1736426718152,10.63866087,189.91,189.78,10.63866087]
[1736426718361,10.63866087,189.88,189.75,4.614]
[1736426718559,10.63866087,189.88,189.76,10.63866087]
[1736426718760,4.5724,189.93,189.79,10.63866087]
[1736426718960,4.5724,189.93,189.82,10.63866087]
[1736426719161,1.4985,189.93,189.83,3.205]
[1736426719356,2.6345,189.92,189.85,10.63866087]
[1736426720160,1.4985,189.93,189.85,10.63866087]
[1736426721061,10.63866087,189.97,189.85,10.63866087]
[1736426721062,2.6341,189.94,189.88,2.6348]
[1736426721261,10.63866087,189.97,189.85,10.63866087]
[1736426721455,2.6344,189.92,189.85,13.27386087]
[1736426721663,10.63866087,189.97,189.85,10.63866087]
[1736426721963,1.5187,189.99,189.88,10.63866087]